[Event "Austrian Women Bundesliga 2023-24"]
[Site "Austria"]
[Date "2024.03.22"]
[Round "4.17"]
[White "Polterauer, Chiara"]
[Black "Heinatz, Gundula"]
[Result "1/2-1/2"]
[ECO "B12"]
[WhiteElo "2194"]
[BlackElo "2116"]
[Annotator "RC"]
[PlyCount "60"]
[EventDate "2023.11.21"]
[EventType "team-tourn"]
[EventCountry "AUT"]
[SourceTitle "playchess.com"]
[Source "ChessBase"]
[SourceQuality "1"]
[TimeControl "40/5400+30:1800+30"]

1. e4 {[%emt 0:00:09]} c6 {[%emt 0:00:11]} 2. d4 {[%emt 0:00:08]} d5 {[%emt 0:00:07]} 3. e5 {[%emt 0:00:05]} Bf5 {[%emt 0:00:15]} 4. h4 {[%emt 0:00:39]} h6 {[%emt 0:00:54]} 5. g4 {[%emt 0:00:19]} Bd7 {[%emt 0:00:30]} 6. Nc3 {[%emt 0:00:39]} e6 {[%emt 0:00:57]} 7. Be3 {[%emt 0:03:34]} Qc7 {[%emt 0:04:30]} 8. Nf3 {[%emt 0:03:57]} c5 {[%emt 0:04:32]} 9. Nb5 {[%emt 0:13:38]} Bxb5 {[%emt 0:03:22]} 10. Bxb5+ {[%emt 0:00:13]} Nc6 {[%emt 0:00:08]} 11. c3 {[%emt 0:04:00]} a6 {[%emt 0:09:15]} 12. Qa4 {[%emt 0:11:08]} Rc8 {[%emt 0:03:03]} 13. Bxc6+ {[%emt 0:00:39]} Qxc6 {[%emt 0:00:06]} 14. Qxc6+ {[%emt 0:00:12]} Rxc6 {[%emt 0:00:06]} 15. dxc5 {[%emt 0:12:36]} Bxc5 {[%emt 0:00:14]} 16. Bxc5 {[%emt 0:00:22]} Rxc5 {[%emt 0:00:04]} 17. h5 {[%emt 0:04:34]} Ne7 {[%emt 0:01:53]} 18. Nd4 {[%emt 0:07:14]} Kd7 {[%emt 0:08:31]} 19. O-O-O {[%emt 0:03:09]} b5 {[%emt 0:04:09]} 20. a3 {[%emt 0:00:54]} Nc6 {[%emt 0:06:39]} 21. Nxc6 {[%emt 0:01:22]} Rxc6 {[%emt 0:00:10]} 22. Rd4 {[%emt 0:00:16]} Rhc8 {[%emt 0:00:49]} 23. Rhd1 {[%emt 0:00:07]} a5 {[%emt 0:05:17]} 24. R1d3 {[%emt 0:00:45]} Rc4 {[%emt 0:01:07]} 25. Kd2 {[%emt 0:01:15]} a4 {[%emt 0:03:08]} 26. Rf3 {[%emt 0:01:42]} Ke7 {[%emt 0:00:59]} 27. Rfd3 {[%emt 0:00:54]} Rf8 {[%emt 0:05:05]} 28. f4 {[%emt 0:03:55]} f6 {[%emt 0:18:22]} 29. exf6+ {[%emt 0:00:49]} Rxf6 {[%emt 0:02:50]} 30. Ke3 {[%emt 0:00:23]} Kd6 {[%emt 0:01:21]} 1/2-1/2

[Event "Austrian Women Bundesliga 2023-24"]
[Site "Austria"]
[Date "2024.03.22"]
[Round "4.18"]
[White "Novkovic, Julia"]
[Black "Schloffer, Jasmin-Denise"]
[Result "1/2-1/2"]
[ECO "C78"]
[WhiteElo "2096"]
[BlackElo "2167"]
[Annotator "RC"]
[PlyCount "119"]
[EventDate "2023.11.21"]
[EventType "team-tourn"]
[EventCountry "AUT"]
[SourceTitle "playchess.com"]
[Source "ChessBase"]
[SourceQuality "1"]
[TimeControl "40/5400+30:1800+30"]

1. e4 {[%emt 0:00:03]} e5 {[%emt 0:00:04]} 2. Nf3 {[%emt 0:00:35]} Nc6 {[%emt 0:00:05]} 3. Bb5 {[%emt 0:00:44]} a6 {[%emt 0:00:07]} 4. Ba4 {[%emt 0:00:04]} Nf6 {[%emt 0:00:04]} 5. O-O {[%emt 0:00:12]} b5 {[%emt 0:04:57]} 6. Bb3 {[%emt 0:00:06]} Bc5 {[%emt 0:00:03]} 7. d3 {[%emt 0:05:06]} d6 {[%emt 0:05:44]} 8. c3 {[%emt 0:00:57]} O-O {[%emt 0:01:48]} 9. Re1 {[%emt 0:02:31]} h6 {[%emt 0:06:32]} 10. Nbd2 {[%emt 0:06:11]} Re8 {[%emt 0:03:40]} 11. Nf1 {[%emt 0:01:23]} Be6 {[%emt 0:04:52]} 12. Bc2 {[%emt 0:02:23]} d5 {[%emt 0:05:30]} 13. exd5 {[%emt 0:26:09]} Bxd5 {[%emt 0:03:40]} 14. Ne3 {[%emt 0:02:28]} Be6 {[%emt 0:01:02]} 15. a4 {[%emt 0:03:26]} Rb8 {[%emt 0:08:37]} 16. axb5 {[%emt 0:01:52]} axb5 {[%emt 0:00:10]} 17. Nxe5 {[%emt 0:13:03]} Nxe5 {[%emt 0:04:22]} 18. d4 {[%emt 0:00:39]} Bd6 {[%emt 0:01:33]} 19. dxe5 {[%emt 0:00:26]} Bxe5 {[%emt 0:00:05]} 20. Qxd8 {[%emt 0:02:58]} Rbxd8 {[%emt 0:01:36]} 21. Ra5 {[%emt 0:02:11]} c6 {[%emt 0:05:51]} 22. Ra7 {[%emt 0:03:28]} c5 {[%emt 0:09:42]} 23. Rd1 {[%emt 0:05:18]} Rxd1+ {[%emt 0:05:39]} 24. Bxd1 {[%emt 0:00:34]} Rd8 {[%emt 0:03:15]} 25. g3 {[%emt 0:11:36]} b4 {[%emt 0:03:33]} 26. cxb4 {[%emt 0:01:09]} cxb4 {[%emt 0:00:06]} 27. Bf3 {[%emt 0:02:14]} b3 {[%emt 0:03:08]} 28. Ra8 {[%emt 0:01:07]} Rxa8 {[%emt 0:01:01]} 29. Bxa8 {[%emt 0:00:02]} Nd7 {[%emt 0:00:20]} 30. Kf1 {[%emt 0:02:40]} Nc5 {[%emt 0:04:56]} 31. Ke2 {[%emt 0:01:04]} Na4 {[%emt 0:05:49]} 32. Nd1 {[%emt 0:00:09]} Bc4+ {[%emt 0:00:41]} 33. Kd2 {[%emt 0:02:04]} Kf8 {[%emt 0:02:23]} 34. Be4 {[%emt 0:01:15]} Nc5 {[%emt 0:01:47]} 35. Bb1 {[%emt 0:00:07]} g5 {[%emt 0:02:13]} 36. Ne3 {[%emt 0:00:36]} Be6 {[%emt 0:00:23]} 37. Bf5 {[%emt 0:00:57]} Bxf5 {[%emt 0:01:19]} 38. Nxf5 {[%emt 0:00:01]} Na4 {[%emt 0:00:08]} 39. Kd3 {[%emt 0:00:58]} Bxb2 {[%emt 0:01:57]} 40. Bxb2 {[%emt 0:00:49]} Nxb2+ {[%emt 0:00:04]} 41. Kc3 {[%emt 0:30:09]} Nd1+ {[%emt 0:30:54]} 42. Kxb3 {[%emt 0:00:44]} Nxf2 {[%emt 0:00:13]} 43. Kc4 {[%emt 0:00:00]} h5 {[%emt 0:00:00]} 44. h4 {[%emt 0:00:00]} f6 {[%emt 0:00:00]} 45. Kd4 {[%emt 0:00:00]} Kf7 {[%emt 0:00:00]} 46. Kd5 {[%emt 0:00:00]} Ng4 {[%emt 0:00:00]} 47. Ke4 {[%emt 0:00:00]} gxh4 {[%emt 0:00:00]} 48. gxh4 {[%emt 0:00:00]} Ne5 {[%emt 0:00:00]} 49. Kf4 {[%emt 0:00:00]} Ng6+ {[%emt 0:00:00]} 50. Kf3 {[%emt 0:00:00]} Ne7 {[%emt 0:00:00]} 51. Nd6+ {[%emt 0:00:00]} Ke6 {[%emt 0:00:00]} 52. Ne8 {[%emt 0:00:00]} Kf7 {[%emt 0:00:00]} 53. Nd6+ {[%emt 0:00:00]} Kg6 {[%emt 0:00:00]} 54. Ke4 {[%emt 0:00:00]} Ng8 {[%emt 0:00:00]} 55. Kf4 {[%emt 0:00:00]} Nh6 {[%emt 0:00:00]} 56. Ke4 {[%emt 0:00:00]} Nf7 {[%emt 0:00:00]} 57. Ne8 {[%emt 0:00:00]} Nd8 {[%emt 0:00:00]} 58. Nd6 {[%emt 0:00:00]} Ne6 {[%emt 0:00:00]} 59. Nf5 {[%emt 0:00:02]} Ng7 {[%emt 0:00:00]} 60. Nd6 {[%emt 0:00:09]} 1/2-1/2

[Event "Austrian Women Bundesliga 2023-24"]
[Site "Austria"]
[Date "2024.03.22"]
[Round "4.19"]
[White "Konecny, Sophie"]
[Black "Manko, Mariya"]
[Result "1/2-1/2"]
[ECO "B22"]
[WhiteElo "1907"]
[BlackElo "2209"]
[Annotator "RC"]
[PlyCount "106"]
[EventDate "2023.11.21"]
[EventType "team-tourn"]
[EventCountry "AUT"]
[SourceTitle "playchess.com"]
[Source "ChessBase"]
[SourceQuality "1"]
[TimeControl "40/5400+30:1800+30"]

1. e4 {[%emt 0:00:03]} c5 {[%emt 0:00:09]} 2. c3 {[%emt 0:00:05]} Nf6 {[%emt 0:00:23]} 3. e5 {[%emt 0:00:29]} Nd5 {[%emt 0:00:18]} 4. d4 {[%emt 0:00:40]} Nc6 {[%emt 0:06:10]} 5. Nf3 {[%emt 0:02:13]} cxd4 {[%emt 0:00:54]} 6. Bc4 {[%emt 0:04:10]} Nb6 {[%emt 0:03:10]} 7. Bb5 {[%emt 0:02:19]} dxc3 {[%emt 0:13:12]} 8. Nxc3 {[%emt 0:01:18]} a6 {[%emt 0:02:40]} 9. Ba4 {[%emt 0:04:24]} Nxa4 {[%emt 0:03:21]} 10. Qxa4 {[%emt 0:01:13]} g6 {[%emt 0:08:18]} 11. O-O {[%emt 0:07:49]} Bg7 {[%emt 0:01:46]} 12. Bf4 {[%emt 0:08:38]} O-O {[%emt 0:04:20]} 13. Rad1 {[%emt 0:04:22]} Ra7 {[%emt 0:15:39]} 14. Qb3 {[%emt 0:04:39]} b5 {[%emt 0:01:33]} 15. Nd5 {[%emt 0:05:07]} Ra8 {[%emt 0:07:26]} 16. Qe3 {[%emt 0:06:09]} a5 {[%emt 0:06:13]} 17. Qc5 {[%emt 0:08:56]} Ba6 {[%emt 0:06:59]} 18. Nd4 {[%emt 0:12:59]} Nxd4 {[%emt 0:03:34]} 19. Nxe7+ {[%emt 0:01:49]} Qxe7 {[%emt 0:00:41]} 20. Qxe7 {[%emt 0:01:06]} Ne2+ {[%emt 0:00:09]} 21. Kh1 {[%emt 0:00:05]} Nxf4 {[%emt 0:00:07]} 22. Rxd7 {[%emt 0:03:11]} Rae8 {[%emt 0:00:26]} 23. Qd6 {[%emt 0:01:37]} Re6 {[%emt 0:09:13]} 24. Qd2 {[%emt 0:01:58]} Bxe5 {[%emt 0:01:19]} 25. g3 {[%emt 0:06:08]} Nh5 {[%emt 0:00:17]} 26. f4 {[%emt 0:01:26]} Bf6 {[%emt 0:01:46]} 27. g4 {[%emt 0:07:26]} b4 {[%emt 0:00:39]} 28. Rf2 {[%emt 0:01:59]} Ng7 {[%emt 0:02:01]} 29. f5 {[%emt 0:01:04]} gxf5 {[%emt 0:01:16]} 30. gxf5 {[%emt 0:00:26]} Rb6 {[%emt 0:00:45]} 31. Kg1 {[%emt 0:01:11]} Rc8 {[%emt 0:00:35]} 32. Rg2 {[%emt 0:00:41]} Rbc6 {[%emt 0:00:13]} 33. h4 {[%emt 0:00:40]} Rc1+ {[%emt 0:00:13]} 34. Kh2 {[%emt 0:00:14]} Be5+ {[%emt 0:00:31]} 35. Kh3 {[%emt 0:00:48]} h5 {[%emt 0:00:34]} 36. Rd8+ {[%emt 0:00:27]} Rxd8 {[%emt 0:00:35]} 37. Qxd8+ {[%emt 0:00:01]} Kh7 {[%emt 0:00:05]} 38. Rxg7+ {[%emt 0:00:15]} Bxg7 {[%emt 0:00:10]} 39. f6 {[%emt 0:01:19]} Bh6 {[%emt 0:01:37]} 40. Qxa5 {[%emt 0:00:25]} Bc8+ {[%emt 0:00:32]} 41. Kg3 {[%emt 0:01:28]} Rg1+ {[%emt 0:11:14]} 42. Kh2 {[%emt 0:02:00]} Rg6 {[%emt 0:02:41]} 43. Qe5 {[%emt 0:02:05]} Bb7 {[%emt 0:04:27]} 44. Kh3 {[%emt 0:03:14]} Bf3 {[%emt 0:02:24]} 45. a4 {[%emt 0:04:05]} bxa3 {[%emt 0:09:32]} 46. bxa3 {[%emt 0:00:34]} Kh8 {[%emt 0:01:41]} 47. a4 {[%emt 0:03:49]} Bg2+ {[%emt 0:00:25]} 48. Kh2 {[%emt 0:00:08]} Bc6 {[%emt 0:00:40]} 49. a5 {[%emt 0:02:03]} Rg2+ {[%emt 0:01:06]} 50. Kh3 {[%emt 0:00:12]} Rf2 {[%emt 0:00:30]} 51. Qb8+ {[%emt 0:01:35]} Kh7 {[%emt 0:00:06]} 52. Qb1+ {[%emt 0:00:15]} Kg8 {[%emt 0:00:26]} 53. Qb8+ {[%emt 0:00:07]} Kh7 {[%emt 0:00:05]} 1/2-1/2

[Event "Austrian Women Bundesliga 2023-24"]
[Site "Austria"]
[Date "2024.03.22"]
[Round "4.20"]
[White "Kurapova, Olga"]
[Black "Wu, Min"]
[Result "1/2-1/2"]
[ECO "C68"]
[WhiteElo "1970"]
[BlackElo "1938"]
[Annotator "RC"]
[PlyCount "142"]
[EventDate "2023.11.21"]
[EventType "team-tourn"]
[EventCountry "AUT"]
[SourceTitle "playchess.com"]
[Source "ChessBase"]
[SourceQuality "1"]
[TimeControl "40/5400+30:1800+30"]

1. e4 {[%emt 0:00:01]} e5 {[%emt 0:00:06]} 2. Nf3 {[%emt 0:00:03]} Nc6 {[%emt 0:00:05]} 3. Bb5 {[%emt 0:00:09]} a6 {[%emt 0:00:06]} 4. Bxc6 {[%emt 0:00:03]} dxc6 {[%emt 0:00:06]} 5. O-O {[%emt 0:00:07]} Bg4 {[%emt 0:00:38]} 6. h3 {[%emt 0:00:07]} h5 {[%emt 0:00:06]} 7. d3 {[%emt 0:00:33]} Qf6 {[%emt 0:01:05]} 8. Nbd2 {[%emt 0:04:02]} g5 {[%emt 0:00:57]} 9. Nc4 {[%emt 0:05:26]} Bxf3 {[%emt 0:00:52]} 10. Qxf3 {[%emt 0:00:15]} Qxf3 {[%emt 0:00:06]} 11. gxf3 {[%emt 0:00:04]} f6 {[%emt 0:00:05]} 12. c3 {[%emt 0:03:24]} c5 {[%emt 0:12:13]} 13. Be3 {[%emt 0:02:23]} O-O-O {[%emt 0:18:55]} 14. Rfd1 {[%emt 0:01:30]} Nh6 {[%emt 0:03:33]} 15. d4 {[%emt 0:01:29]} cxd4 {[%emt 0:00:44]} 16. cxd4 {[%emt 0:00:04]} Nf7 {[%emt 0:01:12]} 17. Rac1 {[%emt 0:02:59]} Bd6 {[%emt 0:15:00]} 18. d5 {[%emt 0:12:28]} Rhg8 {[%emt 0:08:37]} 19. Kf1 {[%emt 0:02:19]} g4 {[%emt 0:08:27]} 20. fxg4 {[%emt 0:02:21]} hxg4 {[%emt 0:02:01]} 21. hxg4 {[%emt 0:01:42]} Rxg4 {[%emt 0:00:05]} 22. f3 {[%emt 0:03:18]} Rh4 {[%emt 0:00:29]} 23. Ke2 {[%emt 0:10:27]} Rh2+ {[%emt 0:04:17]} 24. Bf2 {[%emt 0:04:55]} Bc5 {[%emt 0:01:34]} 25. Ne3 {[%emt 0:00:06]} Bxe3 {[%emt 0:04:50]} 26. Kxe3 {[%emt 0:00:10]} Nd6 {[%emt 0:00:22]} 27. Rg1 {[%emt 0:02:22]} f5 {[%emt 0:03:16]} 28. Rg7 {[%emt 0:03:51]} Rd7 {[%emt 0:01:08]} 29. Rg8+ {[%emt 0:02:11]} Rd8 {[%emt 0:00:03]} 30. Rg5 {[%emt 0:01:06]} fxe4 {[%emt 0:01:43]} 31. fxe4 {[%emt 0:02:26]} Rxf2 {[%emt 0:00:52]} 32. Rxe5 {[%emt 0:11:52]} Rdf8 {[%emt 0:04:05]} 33. Re7 {[%emt 0:01:29]} Nb5 {[%emt 0:01:16]} 34. e5 {[%emt 0:02:07]} R2f3+ {[%emt 0:00:18]} 35. Kd2 {[%emt 0:00:23]} Kd8 {[%emt 0:02:00]} 36. d6 {[%emt 0:04:40]} cxd6 {[%emt 0:00:19]} 37. exd6 {[%emt 0:00:04]} Nxd6 {[%emt 0:03:14]} 38. Rcc7 {[%emt 0:00:49]} R3f7 {[%emt 0:00:40]} 39. Rcd7+ {[%emt 0:00:18]} Kc8 {[%emt 0:00:09]} 40. Rxf7 {[%emt 0:02:40]} Nxf7 {[%emt 0:00:10]} 41. Re7 {[%emt 0:30:14]} Rd8+ {[%emt 0:30:21]} 42. Kc3 {[%emt 0:00:06]} Rd7 {[%emt 0:00:03]} 43. Re8+ {[%emt 0:00:21]} Kc7 {[%emt 0:02:44]} 44. b4 {[%emt 0:00:41]} Kb6 {[%emt 0:00:00]} 45. Re6+ {[%emt 0:00:00]} Rd6 {[%emt 0:00:00]} 46. Re7 {[%emt 0:00:00]} Rc6+ {[%emt 0:00:00]} 47. Kb3 {[%emt 0:00:00]} Nd6 {[%emt 0:00:00]} 48. a3 {[%emt 0:00:00]} Nb5 {[%emt 0:00:00]} 49. Re4 {[%emt 0:00:00]} Rc3+ {[%emt 0:00:00]} 50. Kb2 {[%emt 0:00:00]} Rxa3 {[%emt 0:00:00]} 51. Re6+ {[%emt 0:00:00]} Ka7 {[%emt 0:00:00]} 52. Re5 {[%emt 0:00:00]} Rh3 {[%emt 0:00:00]} 53. Rg5 {[%emt 0:00:00]} Rh4 {[%emt 0:00:00]} 54. Kb3 {[%emt 0:00:00]} Nd4+ {[%emt 0:00:00]} 55. Kc3 {[%emt 0:00:00]} Nc6 {[%emt 0:00:00]} 56. b5 {[%emt 0:00:00]} axb5 {[%emt 0:00:00]} 57. Rxb5 {[%emt 0:00:00]} Ka6 {[%emt 0:00:00]} 58. Rg5 {[%emt 0:00:00]} Na5 {[%emt 0:00:00]} 59. Rf5 {[%emt 0:00:00]} Rc4+ {[%emt 0:00:00]} 60. Kb2 {[%emt 0:00:00]} b5 {[%emt 0:00:00]} 61. Rf6+ {[%emt 0:00:00]} Nc6 {[%emt 0:00:00]} 62. Kb3 {[%emt 0:00:00]} Ka5 {[%emt 0:00:00]} 63. Rf8 {[%emt 0:00:00]} Nd4+ {[%emt 0:00:00]} 64. Kb2 {[%emt 0:00:00]} Rc2+ {[%emt 0:00:00]} 65. Kb1 {[%emt 0:00:00]} Kb4 {[%emt 0:00:00]} 66. Rf4 {[%emt 0:00:00]} Rc4 {[%emt 0:00:46]} 67. Rf2 {[%emt 0:00:00]} Nb3 {[%emt 0:02:50]} 68. Rh2 {[%emt 0:00:00]} Rd4 {[%emt 0:00:25]} 69. Rg2 {[%emt 0:00:00]} Rd2 {[%emt 0:01:55]} 70. Rg4+ {[%emt 0:00:00]} Ka3 {[%emt 0:00:12]} 71. Ra4+ {[%emt 0:00:00]} Kxa4 {[%emt 0:00:14]} 1/2-1/2

[Event "Austrian Women Bundesliga 2023-24"]
[Site "Austria"]
[Date "2024.03.23"]
[Round "5.1"]
[White "Heinatz, Gundula"]
[Black "Brunello, Marina"]
[Result "0-1"]
[ECO "A47"]
[WhiteElo "2116"]
[BlackElo "2358"]
[Annotator "RC"]
[PlyCount "52"]
[EventDate "2023.11.21"]
[EventType "team-tourn"]
[EventCountry "AUT"]
[SourceTitle "playchess.com"]
[Source "ChessBase"]
[SourceQuality "1"]
[TimeControl "40/5400+30:1800+30"]

1. Nf3 {[%emt 0:00:08]} Nf6 {[%emt 0:00:06]} 2. d4 {[%emt 0:00:10]} b6 {[%emt 0:00:06]} 3. Bg5 {[%emt 0:02:44]} Ne4 {[%emt 0:00:12]} 4. Bh4 {[%emt 0:00:56]} Bb7 {[%emt 0:00:18]} 5. d5 {[%emt 0:01:50]} c6 {[%emt 0:16:35]} 6. c4 {[%emt 0:14:04]} Qc7 {[%emt 0:03:19]} 7. e3 {[%emt 0:08:47]} cxd5 {[%emt 0:11:40]} 8. cxd5 {[%emt 0:04:42]} Qc5 {[%emt 0:00:12]} 9. Nbd2 {[%emt 0:03:37]} Nxd2 {[%emt 0:02:49]} 10. Nxd2 {[%emt 0:00:18]} Qxd5 {[%emt 0:01:06]} 11. Qc2 {[%emt 0:07:49]} Nc6 {[%emt 0:07:49]} 12. Bc4 {[%emt 0:04:47]} Qxg2 {[%emt 0:08:50]} 13. O-O-O {[%emt 0:00:42]} Ne5 {[%emt 0:02:30]} 14. Kb1 {[%emt 0:12:15]} Qg4 {[%emt 0:08:17]} 15. Bb5 {[%emt 0:06:10]} Rc8 {[%emt 0:05:35]} 16. Qb3 {[%emt 0:04:01]} Bxh1 {[%emt 0:01:07]} 17. Rxh1 {[%emt 0:05:09]} Qxh4 {[%emt 0:00:10]} 18. f4 {[%emt 0:00:50]} Nc6 {[%emt 0:00:03]} 19. Nf3 {[%emt 0:04:19]} Qh5 {[%emt 0:02:01]} 20. e4 {[%emt 0:03:33]} e6 {[%emt 0:02:36]} 21. Rg1 {[%emt 0:01:42]} Qc5 {[%emt 0:02:59]} 22. a3 {[%emt 0:05:49]} Be7 {[%emt 0:02:36]} 23. Rxg7 {[%emt 0:00:19]} Nd4 {[%emt 0:02:22]} 24. Nxd4 {[%emt 0:00:46]} Qxd4 {[%emt 0:00:05]} 25. Rg3 {[%emt 0:04:12]} Qxe4+ {[%emt 0:00:09]} 26. Bd3 {[%emt 0:01:35]} Qh1+ {[%emt 0:00:15]} 0-1

[Event "Austrian Women Bundesliga 2023-24"]
[Site "Austria"]
[Date "2024.03.23"]
[Round "5.2"]
[White "Gueci, Tea"]
[Black "Novkovic, Julia"]
[Result "1/2-1/2"]
[ECO "C67"]
[WhiteElo "2193"]
[BlackElo "2096"]
[Annotator "RC"]
[PlyCount "61"]
[EventDate "2023.11.21"]
[EventType "team-tourn"]
[EventCountry "AUT"]
[SourceTitle "playchess.com"]
[Source "ChessBase"]
[SourceQuality "1"]
[TimeControl "40/5400+30:1800+30"]

1. e4 {[%emt 0:00:02]} e5 {[%emt 0:00:09]} 2. Nf3 {[%emt 0:00:04]} Nc6 {[%emt 0:00:05]} 3. Bb5 {[%emt 0:00:03]} Nf6 {[%emt 0:01:00]} 4. O-O {[%emt 0:00:16]} Nxe4 {[%emt 0:01:12]} 5. Re1 {[%emt 0:00:14]} Nd6 {[%emt 0:00:09]} 6. a4 {[%emt 0:00:06]} Be7 {[%emt 0:00:57]} 7. Nc3 {[%emt 0:00:08]} a6 {[%emt 0:04:10]} 8. Bf1 {[%emt 0:00:29]} e4 {[%emt 0:00:53]} 9. Nxe4 {[%emt 0:00:24]} Nxe4 {[%emt 0:00:07]} 10. Rxe4 {[%emt 0:00:03]} d5 {[%emt 0:00:08]} 11. Re1 {[%emt 0:00:39]} O-O {[%emt 0:00:40]} 12. h3 {[%emt 0:01:05]} Bf5 {[%emt 0:05:16]} 13. d3 {[%emt 0:08:44]} Bf6 {[%emt 0:05:42]} 14. Ra3 {[%emt 0:12:27]} Be7 {[%emt 0:02:06]} 15. Ra1 {[%emt 0:02:11]} Bf6 {[%emt 0:00:05]} 16. Rb1 {[%emt 0:04:48]} Qd6 {[%emt 0:05:07]} 17. g3 {[%emt 0:03:22]} Rfe8 {[%emt 0:05:45]} 18. Rxe8+ {[%emt 0:05:26]} Rxe8 {[%emt 0:00:07]} 19. Bf4 {[%emt 0:00:03]} Qd7 {[%emt 0:01:13]} 20. Kh2 {[%emt 0:05:17]} Nd4 {[%emt 0:05:11]} 21. b3 {[%emt 0:13:34]} c6 {[%emt 0:07:09]} 22. Nxd4 {[%emt 0:03:28]} Bxd4 {[%emt 0:00:09]} 23. Qd2 {[%emt 0:00:19]} Qe7 {[%emt 0:05:55]} 24. Rc1 {[%emt 0:02:32]} Bf6 {[%emt 0:03:54]} 25. d4 {[%emt 0:08:41]} h6 {[%emt 0:01:15]} 26. Be3 {[%emt 0:06:44]} Qd7 {[%emt 0:09:25]} 27. c3 {[%emt 0:01:41]} Be4 {[%emt 0:04:23]} 28. Be2 {[%emt 0:02:52]} Re7 {[%emt 0:01:41]} 29. Re1 {[%emt 0:02:20]} Bf5 {[%emt 0:01:36]} 30. Bf1 {[%emt 0:01:23]} Qe8 {[%emt 0:00:47]} 31. Rc1 {[%emt 0:01:04]} 1/2-1/2

[Event "Austrian Women Bundesliga 2023-24"]
[Site "Austria"]
[Date "2024.03.23"]
[Round "5.3"]
[White "Rojickova, Monika"]
[Black "Khrapko, Marharyta"]
[Result "1/2-1/2"]
[ECO "C02"]
[WhiteElo "2056"]
[BlackElo "2218"]
[Annotator "RC"]
[PlyCount "103"]
[EventDate "2023.11.21"]
[EventType "team-tourn"]
[EventCountry "AUT"]
[SourceTitle "playchess.com"]
[Source "ChessBase"]
[SourceQuality "1"]
[TimeControl "40/5400+30:1800+30"]

1. e4 {[%emt 0:00:05]} c5 {[%emt 0:00:07]} 2. c3 {[%emt 0:00:15]} e6 {[%emt 0:01:21]} 3. d4 {[%emt 0:00:15]} d5 {[%emt 0:00:02]} 4. e5 {[%emt 0:01:31]} Qb6 {[%emt 0:02:41]} 5. Nf3 {[%emt 0:03:40]} Bd7 {[%emt 0:00:55]} 6. Be2 {[%emt 0:07:53]} Nc6 {[%emt 0:09:35]} 7. O-O {[%emt 0:00:39]} cxd4 {[%emt 0:02:51]} 8. cxd4 {[%emt 0:00:05]} Nge7 {[%emt 0:00:05]} 9. Nc3 {[%emt 0:06:40]} Nf5 {[%emt 0:04:29]} 10. Be3 {[%emt 0:05:29]} Be7 {[%emt 0:04:23]} 11. Rc1 {[%emt 0:12:04]} O-O {[%emt 0:13:27]} 12. Na4 {[%emt 0:06:16]} Qd8 {[%emt 0:02:18]} 13. Nc5 {[%emt 0:02:33]} Be8 {[%emt 0:02:49]} 14. Qd2 {[%emt 0:08:50]} Qb8 {[%emt 0:18:14]} 15. Rc3 {[%emt 0:13:17]} a5 {[%emt 0:02:11]} 16. a3 {[%emt 0:08:22]} b5 {[%emt 0:10:56]} 17. Bxb5 {[%emt 0:06:46]} Qxb5 {[%emt 0:09:08]} 18. Rb3 {[%emt 0:00:56]} Nb4 {[%emt 0:00:02]} 19. axb4 {[%emt 0:02:30]} a4 {[%emt 0:00:21]} 20. Ra3 {[%emt 0:01:13]} Rb8 {[%emt 0:07:34]} 21. Rfa1 {[%emt 0:09:16]} Qc4 {[%emt 0:04:33]} 22. Qc3 {[%emt 0:01:24]} Rxb4 {[%emt 0:00:37]} 23. Nxa4 {[%emt 0:00:41]} Nxe3 {[%emt 0:02:18]} 24. fxe3 {[%emt 0:00:14]} Qe2 {[%emt 0:00:30]} 25. b3 {[%emt 0:00:33]} Rb8 {[%emt 0:00:58]} 26. R3a2 {[%emt 0:00:27]} Qb5 {[%emt 0:00:01]} 27. Nd2 {[%emt 0:00:41]} f6 {[%emt 0:00:46]} 28. exf6 {[%emt 0:00:43]} Rxf6 {[%emt 0:00:01]} 29. Nc5 {[%emt 0:00:16]} Qe2 {[%emt 0:00:41]} 30. Nf3 {[%emt 0:00:34]} Qb5 {[%emt 0:00:19]} 31. Ra8 {[%emt 0:00:21]} h6 {[%emt 0:00:44]} 32. R1a5 {[%emt 0:00:27]} Rxa8 {[%emt 0:00:32]} 33. Rxa8 {[%emt 0:00:13]} Kh7 {[%emt 0:00:36]} 34. Qd3+ {[%emt 0:01:07]} Qxd3 {[%emt 0:00:22]} 35. Nxd3 {[%emt 0:00:04]} Bb5 {[%emt 0:00:49]} 36. Nde5 {[%emt 0:00:47]} Bd6 {[%emt 0:00:25]} 37. Ra5 {[%emt 0:00:24]} Be2 {[%emt 0:00:39]} 38. Kf2 {[%emt 0:00:31]} Bd1 {[%emt 0:00:10]} 39. Nd7 {[%emt 0:01:14]} Rf5 {[%emt 0:00:42]} 40. Nc5 {[%emt 0:00:39]} Bxh2 {[%emt 0:00:43]} 41. Ra1 {[%emt 0:16:17]} Bc2 42. Rc1 {[%emt 0:08:43]} Be4 {[%emt 0:03:17]} 43. Nxe6 {[%emt 0:00:09]} Rf6 {[%emt 0:05:53]} 44. Nc5 {[%emt 0:02:10]} g5 {[%emt 0:00:02]} 45. Ke2 {[%emt 0:01:36]} Bg3 {[%emt 0:00:02]} 46. Rh1 {[%emt 0:01:12]} Kg7 {[%emt 0:01:58]} 47. Rh3 {[%emt 0:00:40]} Bc7 {[%emt 0:05:49]} 48. Nxe4 {[%emt 0:01:38]} dxe4 {[%emt 0:00:02]} 49. Nd2 {[%emt 0:00:06]} Re6 {[%emt 0:02:06]} 50. g4 {[%emt 0:00:16]} Ba5 {[%emt 0:06:25]} 51. Rh1 {[%emt 0:00:07]} Kg6 {[%emt 0:00:12]} 52. Nc4 {[%emt 0:01:55]} 1/2-1/2

[Event "Austrian Women Bundesliga 2023-24"]
[Site "Austria"]
[Date "2024.03.23"]
[Round "5.4"]
[White "Stangl, Anita"]
[Black "Manko, Mariya"]
[Result "0-1"]
[ECO "B33"]
[WhiteElo "2070"]
[BlackElo "2209"]
[Annotator "RC"]
[PlyCount "50"]
[EventDate "2023.11.21"]
[EventType "team-tourn"]
[EventCountry "AUT"]
[SourceTitle "playchess.com"]
[Source "ChessBase"]
[SourceQuality "1"]
[TimeControl "40/5400+30:1800+30"]

1. e4 {[%emt 0:00:02]} c5 {[%emt 0:00:05]} 2. Nf3 {[%emt 0:01:34]} Nc6 {[%emt 0:00:11]} 3. d4 {[%emt 0:00:08]} cxd4 {[%emt 0:00:05]} 4. Nxd4 {[%emt 0:00:19]} Nf6 {[%emt 0:00:07]} 5. Nc3 {[%emt 0:00:56]} e5 {[%emt 0:00:16]} 6. Ndb5 {[%emt 0:03:48]} d6 {[%emt 0:00:18]} 7. Bg5 {[%emt 0:01:49]} a6 {[%emt 0:00:11]} 8. Na3 {[%emt 0:01:34]} b5 {[%emt 0:00:12]} 9. Bxf6 {[%emt 0:02:40]} gxf6 {[%emt 0:00:16]} 10. Nd5 {[%emt 0:01:50]} f5 {[%emt 0:00:10]} 11. exf5 {[%emt 0:07:08]} Bxf5 {[%emt 0:12:08]} 12. Qf3 {[%emt 0:13:16]} Nd4 {[%emt 0:05:05]} 13. Nc7+ {[%emt 0:01:51]} Qxc7 {[%emt 0:02:27]} 14. Qxa8+ {[%emt 0:00:22]} Ke7 {[%emt 0:00:07]} 15. Bd3 {[%emt 0:08:22]} Bxd3 {[%emt 0:12:44]} 16. cxd3 {[%emt 0:00:29]} Qa5+ {[%emt 0:17:29]} 17. Kf1 {[%emt 0:15:19]} Qd2 {[%emt 0:01:18]} 18. Qe4 {[%emt 0:00:45]} f5 {[%emt 0:19:35]} 19. Qe3 {[%emt 0:01:58]} Qxb2 {[%emt 0:00:08]} 20. Re1 {[%emt 0:00:37]} h5 {[%emt 0:06:28]} 21. Qc1 {[%emt 0:11:22]} Qxa2 {[%emt 0:00:45]} 22. Qc7+ {[%emt 0:10:45]} Kf6 {[%emt 0:01:06]} 23. Qd8+ {[%emt 0:02:26]} Kf7 {[%emt 0:00:31]} 24. Rc1 {[%emt 0:03:30]} Qe2+ {[%emt 0:00:20]} 25. Kg1 {[%emt 0:00:09]} Nf3+ {[%emt 0:00:06]} 0-1